Cogmind - Beta 14 @@@ ROGUE MODE // 2025.01.05 @ 13:03:40 Player: Demo Result: Destroyed by G-73 Enforcer with Phase Gun Performance ------------- Evolutions (6) 3000 Regions Visited (18) 3600 Robots Destroyed (246) 1230 Value Destroyed (12353) 12353 Prototype IDs (15) 300 Alien Tech Used (0) 0 Bonus (11196) 11196 TOTAL SCORE: 31679 Bonus ------- High Alert Combat Kills 2999 Follower Combat Kills 3873 Entered Garrisons 1400 Used RIF Installer 4000 Friendly Fire -1076 Cogmind --------- Core Integrity 0/1150 Matter 257/300 Energy 73/100 System Corruption 11% Temperature Cool (0) Movement Hovering (110) Ox1 Location -4/Factory Parts ------- > --- POWER (1) -------- (None) > --- PROPULSION (3) --- Improved Gyrokinetic Inverter > --- UTILITY (11) ----- Targeting Computer Layered Medium Armor Plating Relay Coupler [Sentry] (13) > --- WEAPON (4) ------- Lance Lance Lance > --- INVENTORY (5) ---- Advanced Power Amplifier Matter Compressor (250) Improved Remote Datajack Peak State ------------ > --- POWER ------------ Light Antimatter Reactor > --- PROPULSION ------- Improved Medium Treads Improved Heavy Treads > --- UTILITY ---------- Improved Cooling System Cargo Storage Unit Gravity Neutralizer Improved Light Armor Plating Relay Coupler [NC] Relay Coupler [Grunt] Relay Coupler [Sentry] Relay Coupler [Hunter] > --- WEAPON ----------- PD Laser Railgun > --- INVENTORY -------- Light Antimatter Reactor Improved Treads Improved Medium Treads Improved Heavy Treads Wheel Large Storage Unit Compact Battery Energy Well Matter Compressor Transport Network Coupler Relay Coupler [NC] Relay Coupler [NC] Relay Coupler [Swarmer] Relay Coupler [Swarmer] Relay Coupler [Cutter] Relay Coupler [Grunt] Relay Coupler [Brawler] Relay Coupler [Duelist] Relay Coupler [Demolisher] Relay Coupler [Specialist] Relay Coupler [Hunter] Wave Gun Proton Cannon Railgun Railgun Smartbomb Launcher Remote Datajack [Rating: 94] Favorites ----------- Power Light Angular Momentum Engine Engine Light Angular Momentum Engine Power Core Neutrino Core Reactor Light Antimatter Reactor Propulsion Wheel Treads Improved Medium Treads Leg Carbon-fiber Leg Wheel Wheel Hover Unit Improved Gyrokinetic Inverter Utility Relay Coupler [Grunt] Device Improved Heat Sink Storage High-capacity Storage Unit Processor Targeting Computer Hackware Relay Coupler [Grunt] Protection Improved Light Armor Plating Weapon Precision Beam Rifle Energy Gun Precision Beam Rifle Energy Cannon Advanced Plasma Cannon Ballistic Gun KE Penetrator Ballistic Cannon Heavy Linear Accelerator Launcher Smartbomb Launcher Special Weapon Remote Datajack Impact Weapon Maul Slashing Weapon Blade Saw Piercing Weapon Spear Build | -11 -10 -9 -8 -8 -8 -7 -7 -7 -7 -6 -6 -6 -6 -5 -5 -5 -5 -4 ------- Run | Yrd Mat Mat Mat Gar Mat Fac Gar Fac Gar Fac Gar Fac Gar Fac Gar Fac Gar Fac Slots Evolved 12 | . . 2 2 . . 2 . . . 2 . . . 2 . . . 2 Power . | . . . . . . . . . . . . . . . . . . . Propulsion 1 | . . . . . . 1 . . . . . . . . . . . . Utility 9 | . . . 2 . . 1 . . . 2 . . . 2 . . . 2 Weapon 2 | . . 2 . . . . . . . . . . . . . . . . Parts Attached 404 | 9 2 38 18 35 17 22 15 13 19 30 26 . 35 2 14 31 46 32 Power 26 | 1 . 4 1 1 2 . 1 . . 2 2 . 2 . 1 2 5 2 Engine 14 | 1 . 4 . 1 1 . . . . 1 1 . . . . . 5 . Core 6 | . . . 1 . 1 . 1 . . . 1 . 1 . . 1 . . Reactor 6 | . . . . . . . . . . 1 . . 1 . 1 1 . 2 Propulsion 137 | 4 1 18 8 18 7 14 9 12 8 5 3 . 5 . 2 4 15 4 Treads 63 | 2 1 9 5 9 4 6 5 6 5 1 1 . 4 . 2 3 . . Leg 18 | . . . . . . . . . . . . . . . . . 15 3 Wheel 55 | 2 . 9 3 9 3 8 4 6 3 4 2 . 1 . . 1 . . Hover 1 | . . . . . . . . . . . . . . . . . . 1 Flight . | . . . . . . . . . . . . . . . . . . . Utility 106 | 2 1 5 6 4 2 2 2 1 4 15 9 . 11 2 5 11 18 6 Device 33 | 1 . 3 2 1 2 . 2 1 2 4 . . . 1 2 1 8 3 Storage 11 | 1 1 2 1 1 . . . . . . . . . 1 2 1 1 . Processor 3 | . . . . . . . . . . 1 . . . . . . 2 . Hackware 36 | . . . . . . . . . 1 9 6 . 8 . 1 8 3 . Protection 23 | . . . 3 2 . 2 . . 1 1 3 . 3 . . 1 4 3 Artifact . | . . . . . . . . . . . . . . . . . . . Weapon 135 | 2 . 11 3 12 6 6 3 . 7 8 12 . 17 . 6 14 8 20 Energy Gun 30 | 1 . 9 2 2 1 1 . . . 2 3 . 2 . 4 . 1 2 Energy Cannon 8 | . . . . 1 1 2 1 . 3 . . . . . . . . . Ballistic Gun 38 | 1 . . 1 4 1 1 1 . 1 1 3 . 8 . 2 6 3 5 Ballistic Cannon 9 | . . . . 1 2 2 1 . 2 1 . . . . . . . . Launcher 7 | . . 2 . . 1 . . . . . 3 . . . . 1 . . Special Weapon 26 | . . . . 1 . . . . 1 2 2 . 7 . . 5 1 7 Impact Weapon 3 | . . . . 3 . . . . . . . . . . . . . . Slashing Weapon 3 | . . . . . . . . . . 2 1 . . . . . . . Piercing Weapon 11 | . . . . . . . . . . . . . . . . 2 3 6 Special Melee Weapon . | . . . . . . . . . . . . . . . . . . . Unidentified Prototypes 8 | . . 1 1 . 1 1 . . . . . . . . 1 1 . 2 Corrupted Parts 2 | . . . . 1 1 . . . . . . . . . . . . . System Corruption 3 | . . . . 2 1 . . . . . . . . . . . . . Parts Lost 72 | . . 2 1 . 2 . 3 . 4 5 5 . 3 . 1 20 3 23 Power 7 | . . 1 . . . . . . . 2 . . . . . 2 . 2 Propulsion 22 | . . . 1 . 1 . 2 . 3 1 3 . 1 . . 4 . 6 Utility 22 | . . . . . . . . . . . . . 1 . 1 8 3 9 Weapon 21 | . . 1 . . 1 . 1 . 1 2 2 . 1 . . 6 . 6 Highest Loss Streak 21 | . . 1 1 . 2 . 2 . 2 2 2 . 1 . 1 19 1 21 To Critical Strikes . | . . . . . . . . . . . . . . . . . . . Average Slot Usage (%) 90 | . 100 98 100 99 99 99 99 99 86 93 96 93 92 100 78 73 87 73 Engine 3 | . 14 10 6 2 9 7 6 . . 1 3 . . . . . 4 2 Core 2 | . . . 2 6 . . . 7 7 1 2 6 5 . . 1 . . Reactor 1 | . . . . . . . . . . 3 . . . 5 5 3 . 1 Treads 7 | . 2 11 4 3 1 1 7 10 12 3 7 13 12 11 11 10 . . Leg 1 | . . . . . . . . . . . . . . . . . 14 11 Wheel 8 | . 25 10 13 14 16 21 14 11 8 16 10 6 5 5 . . . . Device 8 | . 14 11 18 18 18 15 15 14 15 5 . . . 5 4 2 10 8 Storage 6 | . 14 11 9 9 9 7 7 7 7 6 6 6 6 11 6 4 . . Hackware 17 | . . . . . . . . . . 24 37 40 34 29 27 32 25 15 Protection 6 | . . . 9 9 9 15 15 15 11 5 1 . 4 5 5 3 2 7 Energy Gun 10 | . 14 41 29 24 18 17 5 . . 3 8 . 1 11 5 4 4 6 Energy Cannon 1 | . . . . 1 7 . 6 7 5 1 . . . . . . . . Ballistic Gun 6 | . 14 1 6 5 . 1 7 7 3 5 8 13 11 11 5 1 12 6 Ballistic Cannon 2 | . . . . 1 9 10 9 15 8 3 . . . . . . . . Special Weapon 1 | . . . . . . . . . 2 4 3 . 1 . . 3 . . Peak Build Rating 94 | 7 8 23 33 47 49 51 54 59 71 69 67 67 69 71 94 93 71 81 Average Rating 57 | 3 7 21 30 35 46 48 50 54 62 61 61 67 64 70 88 88 59 62 On Entrance 47 | . 7 8 23 33 47 49 46 53 53 63 60 67 67 65 71 91 29 65 Naked Turns . | . . . . . . . . . . . . . . . . . . . Heaviest Build 176 | 13 18 36 41 96 97 96 109 109 133 99 73 73 80 94 176 173 55 60 Greatest Support 105 | 20 20 40 40 40 20 30 48 76 76 38 32 16 60 10 105 105 55 75 Greatest Overweight (x) 10 | 1 1 3 4 6 9 8 5 5 10 8 5 4 7 9 9 2 2 1 Average Overweight (x) 2 | . . 2 2 2 4 3 3 4 6 2 2 4 6 9 1 . . . Largest Inventory Capacity 30 | 8 10 15 15 20 20 20 20 20 20 20 20 20 20 20 30 30 5 5 Average Capacity 18 | 5 9 13 15 15 20 20 20 20 20 20 20 20 20 20 29 29 5 5 Most Carried 30 | 4 10 15 15 20 20 20 20 20 20 20 20 20 20 19 30 30 5 5 Average Carried 18 | 2 8 12 14 15 19 19 19 19 19 19 19 20 19 18 28 28 4 4 Final Capacity 30 | 8 10 15 15 20 20 20 20 20 20 20 20 20 20 20 30 5 5 5 Final Carried 30 | 3 10 15 15 20 20 20 20 20 20 17 20 20 20 19 30 5 5 3 Class Distribution -------------------- 26% | Botlord-Tank 18% | Bothacker-Tank 13% | Scavenger-Tank 11% | Botlord-Gunner 7% | Scavenger-Gunner 7% | Tank 3% | Gunner 3% | Scavenger-Mutant Dominant Class ---------------- Scavenger-Mutant | -10/Materials Gunner | -9/Materials Tank | -8/Materials Tank | -8/Garrison Scavenger-Tank | -8/Materials Scavenger-Tank | -7/Factory Scavenger-Tank | -7/Garrison Bothacker-Tank | -7/Factory Bothacker-Tank | -7/Garrison Bothacker-Tank | -6/Factory Botlord-Gunner | -6/Garrison Botlord-Gunner | -6/Factory Botlord-Tank | -6/Garrison Botlord-Tank | -5/Factory Botlord-Tank | -5/Garrison Botlord-Tank | -5/Factory Scavenger-Gunner | -5/Garrison Scavenger-Gunner | -4/Factory Resources | -11 -10 -9 -8 -8 -8 -7 -7 -7 -7 -6 -6 -6 -6 -5 -5 -5 -5 -4 ----------- Run | Yrd Mat Mat Mat Gar Mat Fac Gar Fac Gar Fac Gar Fac Gar Fac Gar Fac Gar Fac Matter Collected 8228 | 284 150 420 305 447 475 191 563 256 417 1014 522 51 825 . 316 376 1158 458 Remotely . | . . . . . . . . . . . . . . . . . . . Salvage Created 11007 | 207 150 1213 751 635 613 179 461 300 413 1708 507 74 448 . 630 365 990 1363 Parts 522 | 12 10 89 49 16 41 10 27 11 17 66 18 2 29 . 25 17 32 51 Haulers Intercepted 6 | . 1 2 1 . 1 . . . . . . . . . . . . 1 Recyclers Shooed 11 | 2 . . 2 . . . . . . 4 . . . . . 1 . 2 Parts Field Recycled . | . . . . . . . . . . . . . . . . . . . Retrieved Matter . | . . . . . . . . . . . . . . . . . . . Parts Self-Destructed . | . . . . . . . . . . . . . . . . . . . Prevented . | . . . . . . . . . . . . . . . . . . . Kills | -11 -10 -9 -8 -8 -8 -7 -7 -7 -7 -6 -6 -6 -6 -5 -5 -5 -5 -4 ------- Run | Yrd Mat Mat Mat Gar Mat Fac Gar Fac Gar Fac Gar Fac Gar Fac Gar Fac Gar Fac Combat Hostiles Destroyed 182 | . 2 27 15 10 13 3 12 6 13 17 10 2 9 . 7 7 16 13 Melee 6 | . . . . . . . . . 1 . . . . . . . 1 4 Guns 108 | . 2 18 15 10 6 1 2 . . 8 10 1 5 . 7 5 15 3 Cannons 41 | . . . . . 4 2 10 5 11 9 . . . . . . . . AOE 23 | . . 8 . . 3 . . 1 . . . 1 4 . . 2 . 4 Classes Destroyed 19 | 2 2 4 3 . 3 1 1 . 1 1 . . . . . . . 1 Worker 12 | . . . 1 . . 1 . . . 6 . . . . . 2 . 2 Builder 14 | . . 3 1 . 1 1 . . . 3 . . . . . . . 5 Tunneler 4 | 4 . . . . . . . . . . . . . . . . . . Hauler 6 | . 1 2 1 . 1 . . . . . . . . . . . . 1 Recycler 10 | 1 . . 1 . . . . . . 6 . . . . . . . 2 Mechanic 1 | . . . . . . . . . . 1 . . . . . . . . Operator 4 | . . . 2 . 1 . . . . 1 . . . . . . . . Watcher 8 | . . 4 1 . 1 . . . . 2 . . . . . . . . Swarmer 37 | . . 8 6 3 2 . 3 . 5 2 2 . 1 . 5 . . . Cutter 5 | . . . . . . . . . 3 . . . 2 . . . . . Saboteur 1 | . . . . . . . . . . . . . . . . . . 1 Grunt 77 | . 2 11 4 1 4 1 2 5 5 8 6 2 1 . 2 2 14 7 Brawler 4 | . . . . . . 1 1 . . 1 . . . . . . 1 . Duelist 5 | . . . . . 1 . 1 . . 2 . . . . . 1 . . Sentry 30 | . . 8 4 5 3 . 1 1 . 3 2 . 2 . . . . 1 Specialist 5 | . . . . . 2 . . . . . . . 1 . . 2 . . Hunter 9 | . . . 1 1 . 1 . . . . . . 2 . . 1 1 2 Programmer 12 | . . . . . . . 4 . . 1 . . 2 . . 3 . 2 Heavy 1 | . . . . . 1 . . . . . . . . . . . . . Thug 1 | . . . . 1 . . . . . . . . . . . . . . Best Kill Streak 8 | 4 2 8 7 5 5 1 3 2 3 8 3 2 4 . 3 3 4 8 Combat Bots Only 5 | . 2 4 5 5 3 1 3 2 3 5 3 2 4 . 3 1 4 4 Max Kills in Single Turn 4 | 2 1 4 1 2 3 1 1 1 1 2 1 1 3 . 2 3 1 4 Gunslinging 1 | . . . . 1 . . . . . 1 . . . . . . . . Exploded 4 | . . 4 . . 1 . . 1 . . . 1 2 . . 1 . 2 Melee 1 | . . . . . . . . . 1 . . . . . . . 1 1 Uniques/NPCs Destroyed . | . . . . . . . . . . . . . . . . . . . Combat | -11 -10 -9 -8 -8 -8 -7 -7 -7 -7 -6 -6 -6 -6 -5 -5 -5 -5 -4 -------- Run | Yrd Mat Mat Mat Gar Mat Fac Gar Fac Gar Fac Gar Fac Gar Fac Gar Fac Gar Fac Hostile Shots Fired 1339 | . 7 77 59 35 64 13 64 48 100 110 100 5 44 . 7 246 79 281 Missed 407 | . 1 21 16 12 15 4 16 19 27 47 30 3 12 . 2 64 29 89 Damage Taken 15199 | . 86 697 509 279 888 143 517 234 1017 968 825 34 368 . 77 3613 920 4024 Core 2892 | . 29 48 69 44 57 10 92 49 124 64 158 . 68 . 12 684 220 1164 Absorbed by Shields 707 | . . . . . . . 20 . 79 104 225 15 93 . 76 85 10 . Reduced by Siege Mode 119 | . . . . . . . . . . . . . . . . 119 . . Redirected to Shielding 75 | . . . . . . . 27 3 45 . . . . . . . . . Ignored by Resistances 508 | . . . 34 48 160 22 95 32 117 . . . . . . . . . Core Remaining (%) 68 | 100 88 88 . . 69 . . . 60 . . . 65 . . . 8 . Volleys Fired 644 | 11 5 44 37 24 34 9 51 13 57 84 50 4 66 . 22 56 44 33 Largest 4 | 2 2 4 4 4 4 4 4 4 3 3 3 2 3 . 3 3 4 4 Hottest 280 | 60 60 239 239 211 280 260 235 238 216 182 182 66 146 . 147 105 165 202 Shots Fired 1520 | 22 10 143 148 77 96 36 153 43 70 147 92 6 89 . 62 99 138 89 Gun 1123 | 22 10 140 148 77 48 24 71 10 12 87 79 4 51 . 62 63 135 80 Cannon 258 | . . . . . 45 12 82 33 53 33 . . . . . . . . Launcher 18 | . . 3 . . 3 . . . . . . 2 7 . . 3 . . Special 121 | . . . . . . . . . 5 27 13 . 31 . . 33 3 9 Kinetic 626 | 11 5 2 31 22 35 17 78 30 23 79 37 4 47 . 37 28 99 41 Thermal 697 | . . 131 117 55 44 19 75 13 42 41 42 . 4 . 25 35 36 18 Explosive 18 | . . 3 . . 3 . . . . . . 2 7 . . 3 . . Electromagnetic 58 | 11 5 7 . . 14 . . . . . . . . . . . . 21 Robot Hit Streak 34 | 3 4 20 18 34 34 26 19 7 15 8 20 8 22 . 26 8 22 19 Robot Miss Streak 9 | 3 1 1 4 1 4 2 3 3 5 6 3 1 1 . 3 9 4 5 Penetration Max 1 | . . . . . . 1 1 . . 1 . 1 1 . 1 . 1 1 Secondary Targets 18 | . . 2 4 4 . . . . . 3 1 . . . . 1 3 . Max Gunslinging Chain 2 | . . 1 1 2 . . . . . 1 1 . . . . 1 1 . Autonomous 47 | . . . . . . . . . . . . . . . 10 37 . . Shots Hit Robots 985 | 13 6 103 86 57 63 27 74 23 38 100 62 5 57 . 53 63 88 67 Core Hits 474 | 6 6 51 33 21 25 10 22 7 11 54 42 6 22 . 24 28 41 65 Critical Kills 8 | . . . . . 1 . 1 . 1 1 1 . . . 1 . 1 1 Critical Parts Destroyed 14 | . . . . 3 2 . 3 1 . 1 . . 1 . 2 . . 1 Critical Strikes 69 | . . 11 10 7 7 4 7 3 2 3 1 . 1 . 4 . 4 5 Burn 34 | . . 11 10 4 2 2 . . . . . . . . 1 . 3 1 Meltdown 1 | . . . . . . . . . 1 . . . . . . . . . Destroy 18 | . . . . . 3 . 4 1 . 2 1 . 1 . 3 . 1 2 Blast 10 | . . . . . 1 2 3 2 1 1 . . . . . . . . Corrupt 2 | . . . . . 1 . . . . . . . . . . . . 1 Smash 3 | . . . . 3 . . . . . . . . . . . . . . Impale 1 | . . . . . . . . . . . . . . . . . . 1 Melee Attacks 59 | . . . . 15 . . . . . 12 . . . . . . 4 28 Impact 15 | . . . . 15 . . . . . . . . . . . . . . Slashing 12 | . . . . . . . . . . 12 . . . . . . . . Piercing 32 | . . . . . . . . . . . . . . . . . 4 28 Sneak Attacks 6 | . . . . . . . . . . 6 . . . . . . . . Combat Hostiles . | . . . . . . . . . . . . . . . . . . . Follow-up Attacks 1 | . . . . . . . . . . . . . . . . . . 1 Damage Inflicted 26981 | 179 76 2182 1617 1224 1835 581 1784 625 1478 3427 1246 494 1497 . 1552 2210 1837 3137 Guns 16262 | 179 76 1785 1617 933 735 355 732 36 50 1561 1246 113 785 . 1551 1454 1814 1240 Cannons 5482 | . . . . . 751 226 1052 507 1366 1580 . . . . . . . . Explosions 4187 | . . 397 . . 349 . . 82 . . . 381 712 . . 756 . 1510 Melee 981 | . . . . 291 . . . . . 286 . . . . . . 23 381 Ramming 69 | . . . . . . . . . 62 . . . . . 1 . . 6 Kinetic 10076 | 113 34 . 289 189 615 308 811 215 595 2373 615 113 775 . 773 504 1118 636 Thermal 12224 | . . 1728 1328 744 901 273 973 410 821 768 631 . 10 . 778 1244 696 919 Explosive 2078 | . . 362 . . 161 . . . . . . 381 712 . . 462 . . Electromagnetic 1553 | 66 42 92 . . 158 . . . . . . . . . . . . 1195 Impact 291 | . . . . 291 . . . . . . . . . . . . . . Slashing 286 | . . . . . . . . . . 286 . . . . . . . . Piercing 404 | . . . . . . . . . . . . . . . . . 23 381 Highest Corruption 18 | . . 2 . 2 3 . 2 2 2 1 1 1 1 . . 18 18 11 Average Corruption 3 | . . 2 . 2 2 . 1 2 2 1 1 1 1 . . 10 18 4 Corruption Purged . | . . . . . . . . . . . . . . . . . . . Corruption Blocked . | . . . . . . . . . . . . . . . . . . . Effects 96 | . . 2 . . 3 . 2 4 11 6 9 1 12 . . 3 39 4 Message Errors 20 | . . . . . . . 1 . 3 4 2 1 3 . . 1 3 2 Matter Fused 20 | . . 1 . . . . . 1 3 . 2 . 2 . . . 11 . Heat Flow Errors 8 | . . . . . . . . . 1 1 . . 1 . . . 5 . Energy Discharges 12 | . . . . . 1 . . . 1 1 1 . 1 . . . 7 . Parts Rejected 6 | . . . . . . . . 1 1 . . . . . . 1 3 . Parts Fused 1 | . . . . . 1 . . . . . . . . . . . . . Data Loss (minor) 18 | . . 1 . . 1 . . 2 2 . 4 . 1 . . . 6 1 Data Loss (major) 5 | . . . . . . . 1 . . . . . 1 . . 1 1 1 Misfires 3 | . . . . . . . . . . . . . 3 . . . . . Alerts 1 | . . . . . . . . . . . . . . . . . 1 . Weapon Failures 2 | . . . . . . . . . . . . . . . . . 2 . Overload Shots . | . . . . . . . . . . . . . . . . . . . Overflow Damage 1108 | . . . . 182 36 . 42 . 200 324 . . 10 . . 149 . 165 Projectiles 572 | . . . . . 10 . 42 . 200 320 . . . . . . . . Explosions 350 | . . . . . 26 . . . . . . . 10 . . 149 . 165 Melee 186 | . . . . 182 . . . . . 4 . . . . . . . . Knockbacks 14 | . . . . 2 . 3 5 . 1 3 . . . . . . . . Impact 1 | . . . . 1 . . . . . . . . . . . . . . Kinetic 10 | . . . . . . 3 3 . 1 3 . . . . . . . . Secondary 3 | . . . . 1 . . 2 . . . . . . . . . . . Self-Inflicted Damage 316 | . . . . . . . . . . . . . . . . . . 316 Shots 7 | . . . . . . . . . . . . . . . . . . 7 Rammed 17 | . . . . . . . . . 14 . . . . . 1 . . 2 Targets Rammed 20 | . . . . . . . . . 15 . . . . . 1 . . 4 Kicked 2 | . . . . . . . . . . . . . . . . . . 2 Crushed 1 | . . . . . . . . . 1 . . . . . . . . . Highest Temperature 566 | . 24 431 171 178 566 69 147 149 129 225 379 . 75 . 391 222 230 233 Average Temperature 92 | . 17 130 53 66 187 21 56 62 42 59 132 . 27 . 147 56 64 81 Received Heat Transfer 3210 | . 48 333 171 126 315 18 90 120 126 306 230 9 33 . 12 72 421 780 Effects 20 | . . . . . 16 . . . . . 3 . . . . . 1 . Shutdowns 3 | . . . . . 3 . . . . . . . . . . . . . Energy Bleed 3 | . . . . . 2 . . . . . 1 . . . . . . . Interference 5 | . . . . . 4 . . . . . . . . . . . 1 . Matter Decay 3 | . . . . . 1 . . . . . 2 . . . . . . . Damage (minor) 1 | . . . . . 1 . . . . . . . . . . . . . Damage (major) 5 | . . . . . 5 . . . . . . . . . . . . . Siege Activations 1 | . . . . . . . . . . . . . . . . 1 . . Total Turns 15 | . . . . . . . . . . . . . . . . 15 . . Longest Duration 15 | . . . . . . . . . . . . . . . . 15 . . Robots Corrupted 3 | . . . . 2 . . . . . . . . . . . . . 1 Combat Hostiles 1 | . . . . . . . . . . . . . . . . . . 1 Parts Fried 12 | . . . . 1 . . . . . . . . . . . . . 11 Impact Corruptions 3 | . . . . 3 . . . . . . . . . . . . . . Robots Melted 3 | . . 1 . . . . . . 1 . . . . . . . . 1 Combat Hostiles 3 | . . 1 . . . . . . 1 . . . . . . . . 1 Parts Melted 50 | . . 11 12 15 2 1 2 . 2 2 2 . 1 . . . . . Heat Transferred 22824 | . . 4564 3626 1924 1593 740 1561 550 1250 1482 1319 . 12 . 940 1000 1256 1007 Parts Sabotaged 5 | . . . . . . . . . . . . . 5 . . . . . Parts Stolen . | . . . . . . . . . . . . . . . . . . . Parts Stripped . | . . . . . . . . . . . . . . . . . . . Power Chain Reactions 2 | . . 1 . . . . . . . . . . . . . . . 1 Alert | -11 -10 -9 -8 -8 -8 -7 -7 -7 -7 -6 -6 -6 -6 -5 -5 -5 -5 -4 ------- Run | Yrd Mat Mat Mat Gar Mat Fac Gar Fac Gar Fac Gar Fac Gar Fac Gar Fac Gar Fac Peak Influence 2204 | 25 222 727 440 488 889 354 652 585 1001 998 1379 857 2204 1157 2057 1519 1219 1054 Initial 1157 | . 16 93 286 . 237 343 206 342 409 525 698 723 599 1157 809 1079 834 639 Average 821 | 10 132 455 250 227 592 310 432 448 744 714 1094 799 1243 1157 1508 1242 1013 674 Maximum Alert Level 5 | . 1 3 2 2 3 1 2 2 3 3 4 3 5 4 5 4 4 3 Low Security (%) 8 | 100 78 12 35 57 . 11 2 . . . . . . . . . . . Level 1 12 | . 21 28 49 17 18 88 39 36 . . . . . . . . . . Level 2 29 | . . 56 15 25 55 . 58 63 48 53 7 . 37 . . . . 78 Level 3 22 | . . 3 . . 25 . . . 51 46 39 100 18 . 22 6 62 21 Level 4 17 | . . . . . . . . . . . 53 . 1 100 26 93 37 . Level 5 9 | . . . . . . . . . . . . . 41 . 50 . . . High Security . | . . . . . . . . . . . . . . . . . . . Max Security . | . . . . . . . . . . . . . . . . . . . Squads Dispatched 45 | . 2 4 1 . 3 4 . 5 . 8 . 2 . . . 10 . 6 Investigation 6 | . 1 1 . . . . . 1 . 1 . 2 . . . . . . Extermination 6 | . . . . . . 1 . . . 1 . . . . . 3 . 1 Reinforcement 22 | . 1 3 1 . 3 2 . 3 . 2 . . . . . 5 . 2 Assault 8 | . . . . . . . . . . 3 . . . . . 2 . 3 Garrison 3 | . . . . . . 1 . 1 . 1 . . . . . . . . Intercept . | . . . . . . . . . . . . . . . . . . . Searches Triggered . | . . . . . . . . . . . . . . . . . . . Construction Impeded 2 | . . . . . 1 . . . . . . . . . . . . 1 Haulers Reinforced 3 | . . . . . . . . 1 . . . . . . . 1 . 1 Active Scanning Responses . | . . . . . . . . . . . . . . . . . . . Cargo Convoy Interrupts 2 | . . . . . . . . . . 1 . . . . . 1 . . Stealth | -11 -10 -9 -8 -8 -8 -7 -7 -7 -7 -6 -6 -6 -6 -5 -5 -5 -5 -4 --------- Run | Yrd Mat Mat Mat Gar Mat Fac Gar Fac Gar Fac Gar Fac Gar Fac Gar Fac Gar Fac Distress Signals 8 | . 2 2 2 . 2 . . . . . . . . . . . . . Communications Jammed 108 | . . . . . . . . . . . . . . . . 105 . 3 Distress Signals 108 | . . . . . . . . . . . . . . . . 105 . 3 Times Spotted 373 | . 10 36 25 14 20 8 12 8 13 51 19 3 26 . 13 52 28 35 Peak Tracking Total 11 | . 4 5 6 5 3 3 3 2 5 5 4 3 6 . 6 11 5 8 Tactical Retreats 23 | . 3 2 1 . . 1 1 . 1 1 . . . . 1 . 4 8 Traps | -11 -10 -9 -8 -8 -8 -7 -7 -7 -7 -6 -6 -6 -6 -5 -5 -5 -5 -4 ------- Run | Yrd Mat Mat Mat Gar Mat Fac Gar Fac Gar Fac Gar Fac Gar Fac Gar Fac Gar Fac Traps Triggered 32 | . 1 1 . 3 . . 3 . 7 . 3 . 3 . 7 2 2 . Indirectly . | . . . . . . . . . . . . . . . . . . . Trap Hack Attempts . | . . . . . . . . . . . . . . . . . . . Triggered . | . . . . . . . . . . . . . . . . . . . Disarmed . | . . . . . . . . . . . . . . . . . . . Reprogrammed . | . . . . . . . . . . . . . . . . . . . Reused . | . . . . . . . . . . . . . . . . . . . Traps Extracted . | . . . . . . . . . . . . . . . . . . . Installed . | . . . . . . . . . . . . . . . . . . . Triggered . | . . . . . . . . . . . . . . . . . . . Machines | -11 -10 -9 -8 -8 -8 -7 -7 -7 -7 -6 -6 -6 -6 -5 -5 -5 -5 -4 ---------- Run | Yrd Mat Mat Mat Gar Mat Fac Gar Fac Gar Fac Gar Fac Gar Fac Gar Fac Gar Fac Machines Disabled 60 | . . 1 . 1 5 . 3 1 5 3 4 . 6 . 2 6 1 22 Max in Single Turn 12 | . . 1 . . 2 . 1 1 2 1 1 . 1 . 1 2 1 12 Garrison Access 1 | . . . . . . . . . . 1 . . . . . . . . Garrison Relay 16 | . . . . . . . 3 . 3 . 4 . 3 . 2 . 1 . Phase Generator 1 | . . . . . . . . . 1 . . . . . . . . . Machines Repaired . | . . . . . . . . . . . . . . . . . . . Machines Dismantled . | . . . . . . . . . . . . . . . . . . . Machines Sabotaged . | . . . . . . . . . . . . . . . . . . . Overloaded Fab Kills . | . . . . . . . . . . . . . . . . . . . Hacking | -11 -10 -9 -8 -8 -8 -7 -7 -7 -7 -6 -6 -6 -6 -5 -5 -5 -5 -4 --------- Run | Yrd Mat Mat Mat Gar Mat Fac Gar Fac Gar Fac Gar Fac Gar Fac Gar Fac Gar Fac Machines Accessed 46 | . 4 8 6 2 2 4 1 2 1 3 . 2 . 1 2 4 . 4 Terminals 36 | . 4 7 5 2 2 3 1 1 1 1 . . . . 2 3 . 4 Fabricators . | . . . . . . . . . . . . . . . . . . . Repair Stations . | . . . . . . . . . . . . . . . . . . . Recycling Units 1 | . . . . . . . . . . . . 1 . . . . . . Scanalyzers 1 | . . 1 . . . . . . . . . . . . . . . . Garrison Access 8 | . . . 1 . . 1 . 1 . 2 . 1 . 1 . 1 . . Total Hacks 132 | . 9 31 17 5 8 11 2 4 2 12 . 6 . 3 4 6 . 12 Successful 57 | . 3 14 9 2 3 3 1 2 . 5 . 3 . 1 1 4 . 6 Failed 75 | . 6 17 8 3 5 8 1 2 2 7 . 3 . 2 3 2 . 6 Catastrophic 17 | . 1 4 2 3 1 . . 2 1 1 . . . 1 1 . . . Database Lockouts . | . . . . . . . . . . . . . . . . . . . Manual 80 | . 10 17 9 2 8 9 . 2 . 6 . 3 . 2 1 4 . 7 Terminals 99 | . 9 23 15 5 8 8 2 2 2 5 . . . . 4 4 . 12 Fabricators . | . . . . . . . . . . . . . . . . . . . Repair Stations . | . . . . . . . . . . . . . . . . . . . Recycling Units 4 | . . . . . . . . . . . . 4 . . . . . . Scanalyzers 8 | . . 8 . . . . . . . . . . . . . . . . Garrison Access 21 | . . . 2 . . 3 . 2 . 7 . 2 . 3 . 2 . . Terminal Hacks 20 | . 2 4 5 2 . 1 1 . . . . . . . 1 2 . 2 Robot Analysis 2 | . 2 . . . . . . . . . . . . . . . . . Open Door 1 | . . . . 1 . . . . . . . . . . . . . . Open DSF 1 | . . . . . . 1 . . . . . . . . . . . . Branch Access Points 1 | . . 1 . . . . . . . . . . . . . . . . Emergency Access Points 1 | . . . . . . . 1 . . . . . . . . . . . Alert Level 1 | . . . 1 . . . . . . . . . . . . . . . Unreport Threat 5 | . . . 4 . . . . . . . . . . . . 1 . . Locate Traps 2 | . . . . . . . . . . . . . . . . 1 . 1 Recall Reinforcements 1 | . . 1 . . . . . . . . . . . . . . . . Registered Components 1 | . . . . . . . . . . . . . . . . . . 1 Registered Prototypes 1 | . . 1 . . . . . . . . . . . . . . . . Zone Layout 1 | . . 1 . . . . . . . . . . . . . . . . Garrison Registry 1 | . . . . 1 . . . . . . . . . . . . . . Patrol Navigation 1 | . . . . . . . . . . . . . . . 1 . . . Fabricator Hacks . | . . . . . . . . . . . . . . . . . . . Repair Station Hacks . | . . . . . . . . . . . . . . . . . . . Recycling Unit Hacks 1 | . . . . . . . . . . . . 1 . . . . . . Report Inventory 1 | . . . . . . . . . . . . 1 . . . . . . Scanalyzer 6 | . . 6 . . . . . . . . . . . . . . . . Insert Component 3 | . . 3 . . . . . . . . . . . . . . . . Analyze 3 | . . 3 . . . . . . . . . . . . . . . . Garrison Access Hacks 9 | . . . 1 . . 1 . 1 . 3 . 1 . 1 . 1 . . Unlock Access 8 | . . . 1 . . 1 . 1 . 2 . 1 . 1 . 1 . . Coupler Status 1 | . . . . . . . . . . 1 . . . . . . . . Unauthorized Hacks 21 | . 1 4 3 . 3 1 . 1 . 2 . 1 . . . 1 . 4 Terminals 18 | . 1 4 3 . 3 1 . 1 . 1 . . . . . . . 4 Botnet 16 | . . 4 3 . 2 1 . 1 . 1 . . . . . . . 4 Detonate 1 | . 1 . . . . . . . . . . . . . . . . . Operators 1 | . . . . . 1 . . . . . . . . . . . . . Fabricators . | . . . . . . . . . . . . . . . . . . . Repair Stations . | . . . . . . . . . . . . . . . . . . . Recycling Units . | . . . . . . . . . . . . . . . . . . . Scanalyzers . | . . . . . . . . . . . . . . . . . . . Garrison Access 3 | . . . . . . . . . . 1 . 1 . . . 1 . . Reprogram 3 | . . . . . . . . . . 1 . 1 . . . 1 . . Data Cores Recovered 4 | . . . 2 . 1 . . . . 1 . . . . . . . . Used . | . . . . . . . . . . . . . . . . . . . Hacking Detections 43 | . 3 8 6 2 2 3 1 2 1 2 . 2 . 1 2 4 . 4 Full Trace Events 6 | . . 1 . . . . . 1 1 1 . 1 . . 1 . . . Feedback Events 1 | . . . . . . . . . . 1 . . . . . . . . Corruption 1 | . . . . . . . . . . 1 . . . . . . . . Feedback Blocked . | . . . . . . . . . . . . . . . . . . . Robot Schematics Acquired . | . . . . . . . . . . . . . . . . . . . Robots Built . | . . . . . . . . . . . . . . . . . . . Authchips . | . . . . . . . . . . . . . . . . . . . Time . | . . . . . . . . . . . . . . . . . . . Total Robot Build Rating . | . . . . . . . . . . . . . . . . . . . Part Schematics Acquired 3 | . . 3 . . . . . . . . . . . . . . . . Parts Built . | . . . . . . . . . . . . . . . . . . . Authchips . | . . . . . . . . . . . . . . . . . . . Time . | . . . . . . . . . . . . . . . . . . . Total Part Build Rating . | . . . . . . . . . . . . . . . . . . . Parts Repaired . | . . . . . . . . . . . . . . . . . . . Time . | . . . . . . . . . . . . . . . . . . . Parts Recycled . | . . . . . . . . . . . . . . . . . . . Recycled Matter . | . . . . . . . . . . . . . . . . . . . Retrieved Matter . | . . . . . . . . . . . . . . . . . . . Retrieved Components . | . . . . . . . . . . . . . . . . . . . Parts Scanalyzed 3 | . . 3 . . . . . . . . . . . . . . . . Part Schematics Acquired 3 | . . 3 . . . . . . . . . . . . . . . . Parts Damaged . | . . . . . . . . . . . . . . . . . . . Bothacking | -11 -10 -9 -8 -8 -8 -7 -7 -7 -7 -6 -6 -6 -6 -5 -5 -5 -5 -4 ------------ Run | Yrd Mat Mat Mat Gar Mat Fac Gar Fac Gar Fac Gar Fac Gar Fac Gar Fac Gar Fac Used RIF Installer 8 | . . . . 1 . . 1 . 1 . 1 . 1 . 1 . 2 . Command Fork 1 | . . . . . . . . . . . . . . . . . 1 . Threat Obfuscator 1 | . . . . . . . . . . . . . . . . . 1 . Signal Jammer 1 | . . . . . . . . . . . 1 . . . . . . . Zone Cloak 1 | . . . . . . . . . 1 . . . . . . . . . Watcher Feeds 1 | . . . . . . . . . . . . . . . 1 . . . Structural Interface 1 | . . . . . . . 1 . . . . . . . . . . . Autoassimilate 1 | . . . . . . . . . . . . . 1 . . . . . Robots Hacked 56 | . . . . . . . . . 1 15 7 . 7 . 1 17 3 5 Non-combat 11 | . . . . . . . . . . 2 . . 1 . . 4 . 4 Combat 45 | . . . . . . . . . 1 13 7 . 6 . 1 13 3 1 Autoassimilated 6 | . . . . . . . . . . . . . . . 1 4 1 . Robot Hacks Applied 57 | . . . . . . . . . 1 18 7 . 7 . . 15 2 7 parse_system 3 | . . . . . . . . . . 2 . . 1 . . . . . start_evac 1 | . . . . . . . . . . . . . . . . 1 . . ignore_repairs 1 | . . . . . . . . . . . . . . . . 1 . . drop_inventory 1 | . . . . . . . . . . . . . . . . 1 . . find_station 1 | . . . . . . . . . . . . . . . . 1 . . deconstruct_bot 4 | . . . . . . . . . . . . . . . . . . 4 block_reporting 1 | . . . . . . . . . . . . . . . . . . 1 mark_security 1 | . . . . . . . . . . 1 . . . . . . . . find_shortcuts 1 | . . . . . . . . . . 1 . . . . . . . . find_garrison 2 | . . . . . . . . . . 1 . . . . . 1 . . scatter_targeting 2 | . . . . . . . . . . . 1 . . . . 1 . . disrupt_area 3 | . . . . . . . . . . 1 2 . . . . . . . amplify_resonance 4 | . . . . . . . . . . 3 . . . . . 1 . . disable_weapons 1 | . . . . . . . . . . . . . . . . 1 . . reboot_system 1 | . . . . . . . . . . . . . 1 . . . . . streamctrl_high 5 | . . . . . . . . . . 2 1 . . . . . 2 . formatsys_low 2 | . . . . . . . . . . . . . . . . 1 . 1 formatsys_high 23 | . . . . . . . . . 1 7 3 . 5 . . 6 . 1 Relay Couplers Released 63 | . . . . . . . 12 . 10 1 17 . 9 . 9 . 5 . Machine Destruction 63 | . . . . . . . 12 . 10 1 17 . 9 . 9 . 5 . Attached 34 | . . . . . . . . . 1 7 6 . 8 . 1 8 3 . Fabnet Peak Effective % . | . . . . . . . . . . . . . . . . . . . Robots Rewired 21 | . . . . 4 . . . . . . . . 17 . . . . . Allies Hacked 2 | . . . . . . . . . . . . . . . . 2 . . Hacks Repelled . | . . . . . . . . . . . . . . . . . . . Allies | -11 -10 -9 -8 -8 -8 -7 -7 -7 -7 -6 -6 -6 -6 -5 -5 -5 -5 -4 -------- Run | Yrd Mat Mat Mat Gar Mat Fac Gar Fac Gar Fac Gar Fac Gar Fac Gar Fac Gar Fac Total Allies 63 | . . . . 4 . . . . 1 9 4 3 22 . 3 11 3 3 Largest Group 25 | . . . . 4 3 . . . 1 6 5 7 25 17 17 10 2 2 Highest-Rated Group 925 | . . . . 140 109 . . . 21 221 188 234 925 671 667 438 82 49 Highest-Rated Ally 62 | . . . . 39 39 . . . 21 47 46 46 46 46 62 62 41 49 Total Orders 6 | . . . . . . . . . . . . . 1 . 2 . 1 2 FOLLOW 1 | . . . . . . . . . . . . . . . . . . 1 GUARD 1 | . . . . . . . . . . . . . . . . . 1 . AID 3 | . . . . . . . . . . . . . 1 . 2 . . . TUNNEL 1 | . . . . . . . . . . . . . . . . . . 1 Ally Attacks 604 | . . . . 21 47 . . . 6 91 32 1 127 . 106 150 19 4 Total Damage 17238 | . . . . 361 545 . . . 146 1755 927 49 3864 . 3172 5663 660 96 Kills 110 | . . . . 7 9 . . . . 7 10 1 23 . 23 26 3 1 Allies Corrupted 1 | . . . . . . . . . . 1 . . . . . . . . Allies Melted 2 | . . . . . . . . . . 1 . . . . . . 1 . Intel | -11 -10 -9 -8 -8 -8 -7 -7 -7 -7 -6 -6 -6 -6 -5 -5 -5 -5 -4 ------- Run | Yrd Mat Mat Mat Gar Mat Fac Gar Fac Gar Fac Gar Fac Gar Fac Gar Fac Gar Fac Robot Analysis Total 2 | . 2 . . . . . . . . . . . . . . . . . Derelict Logs Recovered . | . . . . . . . . . . . . . . . . . . . Drone Launches . | . . . . . . . . . . . . . . . . . . . Drone Recoveries . | . . . . . . . . . . . . . . . . . . . Exploration | -11 -10 -9 -8 -8 -8 -7 -7 -7 -7 -6 -6 -6 -6 -5 -5 -5 -5 -4 ------------- Run | Yrd Mat Mat Mat Gar Mat Fac Gar Fac Gar Fac Gar Fac Gar Fac Gar Fac Gar Fac Turns Passed 14417 | 99 339 1133 594 750 466 560 775 262 1111 1122 989 266 1625 111 1379 1230 850 756 Spaces Moved 7369 | 62 283 674 328 387 224 374 345 120 422 609 575 154 731 50 522 461 504 544 Core 369 | 42 . . . . . . . . . . . . . . . 28 129 170 Treads 1042 | . . 38 1 17 . . 15 1 42 . . . 4 . 491 433 . . Legs 729 | . . . . . . . . . . . . . . . . . 375 354 Wheels 5209 | 20 283 636 327 370 224 374 330 119 380 609 575 154 727 50 31 . . . Hover 20 | . . . . . . . . . . . . . . . . . . 20 Flight . | . . . . . . . . . . . . . . . . . . . Fastest Speed 50 | 50 80 95 110 110 140 110 125 155 128 113 115 160 155 215 215 50 50 50 Average Speed 147 | 75 83 119 123 123 140 126 145 155 203 128 130 160 178 215 239 229 107 96 Slowest Speed 400 | 100 95 160 240 240 215 200 325 243 400 210 165 160 240 215 320 320 150 190 Overloaded Moves . | . . . . . . . . . . . . . . . . . . . Propulsion Burnouts . | . . . . . . . . . . . . . . . . . . . Robots Hopped 3 | . . . . . . . . . . . . . 3 . . . . . Cave-ins Triggered . | . . . . . . . . . . . . . . . . . . . Exploration Rate (%) 35 | 4 60 66 38 49 22 14 51 4 51 18 61 4 73 2 71 24 42 18 Regions Visited 18 Branch Regions . Pre-discovered Areas . | . . . . . . . . . . . . . . . . . . . Known Exits Taken 7 | . . . 1 . . 1 . 1 . 1 . 1 . 1 . 1 . . Unknown Exits Taken 4 | 1 1 1 . . 1 . . . . . . . . . . . . . Scrap Searched . | . . . . . . . . . . . . . . . . . . . Spaces Dug 8 | . . . . 1 . . . . . 2 . . . . . . . 5 Terrain Destroyed 339 | . . 28 . 1 67 2 5 23 79 17 1 9 28 . 2 38 7 32 Melee 6 | . . . . 1 . . . . . . . . . . . . . 5 Projectile 92 | . . . . . 20 2 5 9 8 17 1 . 3 . 2 20 5 . AOE 237 | . . 28 . . 47 . . 13 70 . . 9 25 . . 18 . 27 Terrain Rammed . | . . . . . . . . . . . . . . . . . . . Walls Destroyed . | . . . . . . . . . . . . . . . . . . . Machines Disabled . | . . . . . . . . . . . . . . . . . . . Actions | -11 -10 -9 -8 -8 -8 -7 -7 -7 -7 -6 -6 -6 -6 -5 -5 -5 -5 -4 --------- Run | Yrd Mat Mat Mat Gar Mat Fac Gar Fac Gar Fac Gar Fac Gar Fac Gar Fac Gar Fac Total 9702 | 89 374 903 436 572 306 437 517 161 572 790 738 168 972 54 625 593 721 674 Wait 670 | . 76 111 38 26 19 18 77 9 17 24 25 11 57 2 14 33 90 23 Move 7346 | 61 282 673 327 386 223 373 344 120 421 608 574 153 724 49 521 460 503 544 Hop 3 | . . . . . . . . . . . . . 3 . . . . . Pick Up 158 | 6 7 14 5 15 5 6 14 3 15 13 16 . 9 1 17 4 4 4 Fast Attach 105 | 6 1 7 4 6 3 4 . 1 5 8 9 . 8 . 3 6 24 10 Attach 91 | 1 . 1 4 1 2 3 4 . 10 14 4 . 4 2 7 16 8 10 Detach 26 | . . . . . 1 . . . . 3 1 . . . 9 2 6 4 Swap 208 | 2 1 30 10 28 12 15 11 12 4 8 13 . 23 . 4 9 14 12 Drop 197 | 2 2 23 11 19 7 9 13 3 11 14 22 . 11 . 16 5 24 5 Fire 644 | 11 5 44 37 24 34 9 51 13 57 84 50 4 66 . 22 56 44 33 Melee 56 | . . . . 15 . . . . . 12 . . . . . . 4 25 Ram 2 | . . . . . . . . . . . . . . . . . . 2 Kick 2 | . . . . . . . . . . . . . . . . . . 2 Crush 16 | . . . . . . . . . 15 . . . . . 1 . . . Escape Stasis 90 | . . . . 24 . . 3 . 17 . 24 . 12 . 10 . . . Rewire 88 | . . . . 28 . . . . . 2 . . 55 . 1 2 . . Trap . | . . . . . . . . . . . . . . . . . . . Miscellaneous . | . . . . . . . . . . . . . . . . . . . Route ------- -11/Scrapyard -10/Materials (discovered 3 exits: *Mat x3) -9/Materials (discovered 4 exits: *Mat x2 / *Min x2) -8/Materials -8/Garrison (discovered 3 exits: *Mat x3) -8/Materials -7/Factory -7/Garrison -7/Factory -7/Garrison -6/Factory -6/Garrison (discovered 2 exits: *Fac x2) -6/Factory -6/Garrison (discovered 2 exits: *Fac x2) -5/Factory -5/Garrison (discovered 2 exits: *Fac x2) -5/Factory (discovered 3 exits: *Fac / [*Upp] / Gar) -5/Garrison -4/Factory History --------- Turn | Location | Event 5 | -11/Scrapyard | Discovered new exit (range 16) 100 | -11/Scrapyard | Entered Materials 149 | -10/Materials | Discovered new exit (range 15) 303 | -10/Materials | Build established: Scavenger-Mutant 332 | -10/Materials | Discovered new exit (range 3) 409 | -10/Materials | Discovered new exit (range 15) 439 | -10/Materials | Entered another Materials area 439 | -9/Materials | Evolved 2 slots: Weapon x2 670 | -9/Materials | Discovered new exit (range 5) 786 | -9/Materials | Discovered new exit (range 16) 889 | -9/Materials | Identified exit to Mines 952 | -9/Materials | Build established: Gunner 967 | -9/Materials | Discovered new exit (range 16) 1528 | -9/Materials | Build established: Scavenger-Gunner 1572 | -9/Materials | Entered another Materials area 1572 | -8/Materials | Evolved 2 slots: Utility x2 1860 | -8/Materials | Build established: Tank 2086 | -8/Materials | Identified exit to Garrison 2166 | -8/Materials | Entered Garrison 2175 | -8/Garrison | Discovered new exit (range 58) 2175 | -8/Garrison | Discovered new exit (range 60) 2175 | -8/Garrison | Discovered new exit (range 84) 2300 | -8/Garrison | Triggered checkpoint 2326 | -8/Garrison | Triggered checkpoint 2473 | -8/Garrison | Installed Relay Interface Framework 2916 | -8/Garrison | Entered Materials 2916 | -8/Materials | Accompanied by 3 allies 3025 | -8/Materials | Build established: Scavenger-Tank 3353 | -8/Materials | Discovered new exit (range 7) 3382 | -8/Materials | Entered Factory 3382 | -7/Factory | Evolved 2 slots: Propulsion x1, Utility x1 3875 | -7/Factory | Garrison activated, responded to threat 3938 | -7/Factory | Identified exit to Garrison 3942 | -7/Factory | Entered Garrison 4104 | -7/Garrison | Triggered checkpoint 4152 | -7/Garrison | Garrison Relay disabled 4172 | -7/Garrison | Garrison Relay disabled 4247 | -7/Garrison | Triggered checkpoint 4396 | -7/Garrison | Triggered checkpoint 4470 | -7/Garrison | Garrison Relay disabled 4526 | -7/Garrison | Discovered new exit (range 3) 4557 | -7/Garrison | Expanded RIF knowledge: Structural Interface 4717 | -7/Garrison | Entered Factory 4910 | -7/Factory | Garrison activated, responded to threat 4972 | -7/Factory | Build established: Bothacker-Tank 4976 | -7/Factory | Identified exit to Garrison 4979 | -7/Factory | Entered Garrison 5057 | -7/Garrison | Phase Generator disabled 5415 | -7/Garrison | Triggered checkpoint 5449 | -7/Garrison | Triggered checkpoint 5609 | -7/Garrison | Garrison Relay disabled 5633 | -7/Garrison | Garrison Relay disabled 5839 | -7/Garrison | Triggered checkpoint 5934 | -7/Garrison | Expanded RIF knowledge: Zone Cloak 5991 | -7/Garrison | Garrison Relay disabled 6062 | -7/Garrison | Discovered new exit (range 10) 6090 | -7/Garrison | Entered Factory 6090 | -6/Factory | Evolved 2 slots: Utility x2 6440 | -6/Factory | First assault squad dispatched 6843 | -6/Factory | Identified exit to Garrison 6989 | -6/Factory | Lost 3 allies 7171 | -6/Factory | Garrison activated, responded to threat 7186 | -6/Factory | Cargo convoy interrupted 7201 | -6/Factory | Identified exit to Garrison 7212 | -6/Factory | Entered Garrison 7212 | -6/Garrison | Accompanied by 2 allies 7344 | -6/Garrison | Triggered checkpoint 7358 | -6/Garrison | Garrison Relay disabled 7422 | -6/Garrison | Triggered checkpoint 7499 | -6/Garrison | Expanded RIF knowledge: Signal Jamming 7534 | -6/Garrison | Discovered new exit (range 10) 7542 | -6/Garrison | Triggered checkpoint 7578 | -6/Garrison | Garrison Relay disabled 7629 | -6/Garrison | Garrison Relay disabled 7897 | -6/Garrison | Build established: Botlord-Gunner 7928 | -6/Garrison | Triggered checkpoint 8027 | -6/Garrison | Discovered new exit (range 10) 8108 | -6/Garrison | Garrison Relay disabled 8201 | -6/Garrison | Entered Factory 8201 | -6/Factory | Accompanied by 4 allies 8253 | -6/Factory | Identified exit to Garrison 8467 | -6/Factory | Entered Garrison 8467 | -6/Garrison | Accompanied by 7 allies 9067 | -6/Garrison | Build established: Botlord-Tank 9079 | -6/Garrison | Triggered checkpoint 9118 | -6/Garrison | Garrison Relay disabled 9365 | -6/Garrison | Spotted B-75 Beast 9368 | -6/Garrison | Triggered checkpoint 9380 | -6/Garrison | Triggered checkpoint 9383 | -6/Garrison | Triggered checkpoint 9407 | -6/Garrison | Triggered checkpoint 9546 | -6/Garrison | Discovered new exit (range 16) 9557 | -6/Garrison | Triggered checkpoint 9606 | -6/Garrison | Garrison Relay disabled 9863 | -6/Garrison | Triggered checkpoint 9897 | -6/Garrison | Discovered new exit (range 12) 9906 | -6/Garrison | Lost 3 allies 9971 | -6/Garrison | Expanded RIF knowledge: Autoassimilate 10003 | -6/Garrison | Garrison Relay disabled 10092 | -6/Garrison | Entered Factory 10092 | -5/Factory | Accompanied by 17 allies 10092 | -5/Factory | Evolved 2 slots: Utility x2 10190 | -5/Factory | Identified exit to Garrison 10203 | -5/Factory | Entered Garrison 10203 | -5/Garrison | Accompanied by 17 allies 10460 | -5/Garrison | Spotted B-75 Beast 10495 | -5/Garrison | Triggered checkpoint 10553 | -5/Garrison | Triggered checkpoint 10569 | -5/Garrison | Lost 8 allies 10641 | -5/Garrison | Triggered checkpoint 10675 | -5/Garrison | Garrison Relay disabled 10863 | -5/Garrison | Triggered checkpoint 10905 | -5/Garrison | Triggered checkpoint 11061 | -5/Garrison | Triggered checkpoint 11134 | -5/Garrison | Found embedded Infiltrators 11152 | -5/Garrison | Discovered new exit (range 4) 11344 | -5/Garrison | Garrison Relay disabled 11371 | -5/Garrison | Triggered checkpoint 11455 | -5/Garrison | Expanded RIF knowledge: Watcher Feeds 11491 | -5/Garrison | Discovered new exit (range 13) 11582 | -5/Garrison | Entered Factory 11582 | -5/Factory | Accompanied by 10 allies 11628 | -5/Factory | Discovered new exit (range 7) 12029 | -5/Factory | Lost 3 allies 12182 | -5/Factory | First assault squad dispatched 12246 | -5/Factory | Discovered new exit (range 7) 12329 | -5/Factory | Lost 5 allies 12593 | -5/Factory | Identified exit to Garrison 12731 | -5/Factory | Cargo convoy interrupted 12767 | -5/Factory | Lost 5 allies 12769 | -5/Factory | System corruption reached 10% 12789 | -5/Factory | Core integrity fell below 50% 12812 | -5/Factory | Entered Garrison 12824 | -5/Garrison | Lost 19 parts (2p4n7u6w) 12842 | -5/Garrison | Expanded RIF knowledge: Threat Obfuscation 12892 | -5/Garrison | Triggered checkpoint 12893 | -5/Garrison | Triggered checkpoint 12976 | -5/Garrison | Triggered checkpoint 12993 | -5/Garrison | Core integrity fell below 20% 13469 | -5/Garrison | Garrison Relay disabled 13498 | -5/Garrison | Triggered checkpoint 13512 | -5/Garrison | Discovered new exit (range 10) 13540 | -5/Garrison | Build established: Scavenger-Gunner 13561 | -5/Garrison | Expanded RIF knowledge: Command Fork 13662 | -5/Garrison | Entered Factory 13662 | -4/Factory | Evolved 2 slots: Utility x2 13690 | -4/Factory | Spotted B-86 Titan 13912 | -4/Factory | First assault squad dispatched 14297 | -4/Factory | Lost 21 parts (2p6n8u5w) 14322 | -4/Factory | Core integrity fell below 50% 14378 | -4/Factory | Core integrity fell below 20% 14390 | -4/Factory | System corruption reached 10% 14418 | -4/Factory | Destroyed by G-73 Enforcer with Phase Gun Last Messages --------------- 14338_ E-15 Imp destroyed. 14346_ ALERT: Construction progress impeded, dispatching reinforcements to local area. 14347_ Spear destroyed. 14356_ :#XZLUFAGJYKR#TCDSMASTL/TEK NA 14358_ Acquired Imp. Gyrokinetic Inverter. 14372_ Construction Platform disabled. 14377_ Slug penetrates Wall. 14379_ Matter Pump disabled. 14379_ Acquired Lyr. Medium Armor Plating. 14382_ Acquired Lance. 14386_ System corrupted: Component data lost. 14386_ Acquired Lance. 14400_ Assembly Bed disabled. 14404_ P-70 Sage destroyed. 14410_ VB CCZ0CSTAT,/ANMB NE/FE8T4XW2U 14411_ Lance follow-up attack on L-61 Swordsman. 14412_ ALERT: Significant disruption in Zone 6C, assault force dispatched. 14416_ Slammed into G-73 Enforcer. Map ----- +----------------------------------------------------+ | ?????????????????????????????????????? | | ?????????????????????????????????????? | | ?????????????????????????????????????? | | ?????????????????????????????????????? | | ?????????????????????????????????????? | | ?????????????????????????????????????? | | ?????????????????????????????????????? | | ?????????????????????????????????????? | | ?????????????????????????????????????? | | ?????????????????????????????????????? | | ?????????????????????????????????????? | | ?????????????????????????????????????? | | ?????????????????????????????????????? | | ?????????????????????????????????????? | | ?????????????????????????????????????? | | ?????????????????????????????????????? | | ?????????????????????????????????????? | | ?????????????????????????????????????? | | ?????????????????????????????????????? | | ?????????????????????????????????????? | | ???????????????###############???????? | | ??###########??# #???????? | | ? ]!#??# """"""" #???????? | | ????""""" [[#### """"""" #???????? | | ????"""" *%gl## """"""" #???????? | | ????""""" !#@## """" "" #???????? | | ????""""" !#l## #???????? | | ???? #g## """"""" #=??????? | | ############# ## """"""" #???????? | | # !!! ??# ## """"""" #???????? | | # !! ??# ## """"""" #???????? | | # !! ?# ## ##??????? | | # ?# ########+##"""""######## | | # # % | | # # | | # + %%% """ """ """ | | ??? """""" # // """ """ """ """ | | ?????""""" # /! """ """ """ """ | | ??????"""" ?# ! | | ??????"""" ?# """ """ """ | | ?????? ??# " " """ """ """ | | ????? ??# "Y" """ """ """ | | ?????####???# """ | | ????????????# ? | | ????????????# | | ????????????# ###### | | ????????????# #????? | | ????????????# #?????? | | ????????????# #??????## #?#### | | ????????????# #???????? ?????# | +----------------------------------------------------+ Best States ------------- Heat Dissipation 105 Energy Generation 25 Energy Capacity 370 Matter Stores 436 Matter Capacity 550 Sight Range 16 Terrain Scan Density 10 Additional Mass Support 12 Armor Coverage 825 Resistance: KI 30 Resistance: TH 10 Utility Shielding 66 Phase Shifting 10 Evasion (%) 65 Targeting Accuracy 10 Recoil Reduction 3 Offensive Hacking 14 Defensive Hacking 10 Relay Coupler Types 7 Relay Coupler Value 196 Item Schematics ----------------- Reflective Plating | -9/Materials | Scanalyzed Wheel | -9/Materials | Scanalyzed Machine Analyzer | -9/Materials | Scanalyzed Robot Schematics ------------------ None Fabricated ------------ Nothing Alien Tech Used ----------------- None Achievements -------------- None Challenges ------------ None Game ------ Seed UltimateRiotPrototype Manual? 0 Play Time 02:44:51 Cumulative 129.2 hours Start 2025.01.05 @ 10:21:20 End 2025.01.05 @ 13:03:40 Sessions 1 Manual Loads 0 Difficulty Rogue Special Mode None Game No. 160 Rogue 160 Adventurer 0 Explorer 0 Win Type - Total 1 Types 1/0/0/0/0/0/0/0/0 Lore% 54 Gallery% 69 Achievement% 55 Wizard Run 0 Options --------- Layout 1 ASCII 0 Keyboard 0 Movement Numpad Keybinds 0 Fullscreen 1 Font 24/Smallcaps Map View 50x35 Zoom Use 0% Tactical HUD 1 Map Filters NONE Filters NONE Steam 1 RUN: dfde41e0-1dbf-4d6d-a517-1a9d28056beb